bitfinex-derivatives/quotes_BNBF0:USTF0_20250128
["timestamp","ask_amount","ask_price","bid_price","bid_amount"]
[1738040909370,1.09842589,682.05,681.17,1.09104726]
[1738040910173,1.09842589,682.05,681.18,0.26957773]
[1738040910376,1.09842589,682.05,681.17,1.09104726]
[1738040912772,1.09842589,682.32,681.09,1.53140368]
[1738040912971,1.09842589,682.32,681.1,0.29364263]
[1738040915780,0.29310471,682.35,681.1,0.29364263]
[1738040923084,0.29310471,682.35,681.11,0.2695284]
[1738040923280,0.29310471,682.35,681.12,0.29363401]
[1738040923481,0.29310471,682.35,681.13,0.2695284]
[1738040923681,0.29310471,682.35,681.14,0.29362539]
[1738040923884,0.29310471,682.35,681.15,0.2695284]
[1738040924084,0.29310471,682.35,681.16,0.29361677]
[1738040924280,0.29310471,682.35,681.17,0.2695284]
[1738040924483,0.29310471,682.35,681.18,0.29360815]
[1738040924679,0.29310471,682.35,681.19,0.2695284]
[1738040924979,0.29310471,682.35,681.2,0.29359953]
[1738040925186,0.29310471,682.35,681.21,0.2695284]
[1738040925483,0.29310471,682.35,681.21,0.56312362]
[1738040925683,0.29310471,682.35,681.22,0.2695284]
[1738040928285,0.24261599,682.34,681.22,0.2695284]
[1738040928488,0.29310471,682.35,681.22,0.2695284]
[1738040928886,0.29310471,682.35,681.21,0.29359522]
[1738040929087,0.24262226,682.34,681.22,0.26952369]
[1738040932990,0.29310471,682.35,681.22,0.26952369]
[1738040933290,0.24260759,682.34,681.22,0.26952369]
[1738040938096,1.3915306,682.35,681.22,1.09104726]
[1738040938295,0.24260963,682.34,681.23,0.269511]
[1738040941098,1.34103552,682.34,681.25,1.09104726]
[1738040941397,0.24260963,682.33,681.26,0.269511]
[1738040944201,1.09842589,682.27,681.27,1.09104726]
[1738040944400,0.24260963,682.26,681.28,0.269511]
[1738040946606,1.09842589,682.27,681.29,0.26952336]
[1738040946806,1.09842589,682.27,681.3,0.26952336]
[1738040947001,1.09842589,682.27,681.28,0.26952336]
[1738040947210,0.24262328,682.26,681.28,0.26952336]
[1738040947802,1.09842589,682.27,681.28,0.26952336]
[1738040948002,1.09842589,682.2,681.34,1.09104726]
[1738040951412,1.09842589,682.21,681.33,1.09104726]
[1738040954210,0.29310471,682.35,681.31,1.09104726]
[1738040954211,1.09842589,682.23,681.31,1.09104726]
[1738040957310,0.29310471,682.35,681.21,1.82468447]
[1738040957311,1.09842589,682.3,681.21,1.82468447]
[1738040963723,0.24263225,682.29,681.22,0.26953398]
[1738040965024,0.24263506,682.28,681.23,0.26953682]
[1738040965217,1.09842589,682.3,681.21,1.82468447]
[1738040965218,0.24263506,682.29,681.22,0.26953682]
[1738040970521,1.34106095,682.29,681.22,0.26953682]
[1738040974132,1.09842589,682.25,681.23,1.09104726]
[1738040978331,1.09842589,682.21,681.24,1.09104726]
[1738040980531,1.09842589,682.21,681.24,1.36058408]
[1738040980832,1.09842589,682.15,681.3,1.09104726]
[1738040983833,1.09842589,682.16,681.3,1.09104726]
[1738040985132,1.09842589,682.16,681.31,0.26953738]
[1738040985535,1.09842589,682.16,681.3,1.09104726]
[1738040986235,1.09842589,682.16,681.31,0.26953577]
[1738040986536,1.09842589,682.16,681.3,1.09104726]
[1738040987133,1.09842589,682.13,681.33,1.09104726]
[1738040989936,1.09842589,682.16,681.32,1.09104726]
[1738040993731,1.09842589,682.16,681.21,0.29359522]
[1738040993732,1.09842589,682.23,681.29,1.09104726]
[1738040996139,1.09842589,682.23,681.3,0.2695234]
[1738040996734,1.09842589,682.23,681.29,1.09104726]
[1738040997535,1.09842589,682.25,681.3,1.09104726]
[1738041000334,0.24262264,682.24,681.31,0.26952423]
[1738041000546,0.29310471,682.35,681.31,0.26952423]
[1738041000547,1.09842589,682.22,681.31,1.36057149]
[1738041000833,1.09842589,682.22,681.32,0.26952423]
[1738041001039,1.09842589,682.22,681.33,0.26952182]
[1738041001335,1.09842589,682.22,681.34,0.26952182]
[1738041001542,1.09842589,682.22,681.32,0.26952182]
[1738041001740,1.09842589,682.22,681.31,1.09104726]
[1738041003241,1.09842589,682.18,681.37,1.09104726]
[1738041006141,1.09842589,682.36,681.27,1.53108364]
[1738041006345,1.09842589,682.68,681.28,0.29356505]
[1738041008939,1.09842589,682.68,681.29,0.26944785]
[1738041009847,1.09842589,682.73,681.3,0.29355643]
[1738041010041,0.24254739,682.72,681.3,0.29355643]
[1738041011645,0.24254795,682.71,681.3,0.29355643]
[1738041011845,0.24254795,682.7,681.3,0.29355643]
[1738041012040,0.24254795,682.72,681.3,0.29355643]
[1738041012240,0.24254795,682.71,681.3,0.29355643]
[1738041012443,0.24254795,682.7,681.31,0.26944827]
[1738041012640,0.24254795,682.72,681.32,0.29354781]
[1738041012838,0.24254795,682.71,681.32,0.29354781]
[1738041013044,0.24254795,682.7,681.32,0.29354781]
[1738041013247,0.24254795,682.72,681.32,0.29354781]
[1738041013441,0.24254795,682.71,681.32,0.29354781]
[1738041013642,0.24254795,682.7,681.32,0.29354781]
[1738041013843,0.24254795,682.69,681.32,0.29354781]
[1738041014041,0.24254795,682.68,681.32,0.29354781]
[1738041014245,0.24254795,682.72,681.32,0.29354781]
[1738041014445,0.24254795,682.71,681.33,0.26944847]
[1738041014748,0.24254795,682.7,681.34,0.2935392]
[1738041014948,0.24254795,682.72,681.34,0.2935392]
[1738041015143,0.24254795,682.71,681.34,0.2935392]
[1738041015357,0.24254783,682.7,681.34,0.2935392]
[1738041015653,0.24254783,682.69,681.34,0.2935392]
[1738041015845,0.24254783,682.68,681.34,0.2935392]
[1738041016152,0.24254783,682.67,681.34,0.2935392]
[1738041016347,0.24254783,682.73,681.34,0.2935392]
[1738041016653,0.24254783,682.72,681.34,0.2935392]
[1738041016852,0.24254783,682.71,681.34,0.2935392]
[1738041017153,0.24254797,682.7,681.35,0.26944847]
[1738041017353,0.24254797,682.73,681.36,0.29353058]
[1738041017553,0.24254797,682.72,681.37,0.26944847]
[1738041017754,0.24254797,682.72,681.37,0.56297474]
[1738041018058,0.24254797,682.71,681.38,0.26944847]
[1738041018250,0.24254797,682.73,681.38,0.26944847]
[1738041018447,1.09842589,682.74,681.37,0.29352627]
[1738041018652,0.24254019,682.73,681.37,0.29352627]
[1738041019047,0.24253872,682.72,681.37,0.29352627]
[1738041019252,1.09842589,682.74,681.37,0.29352627]
[1738041022757,1.09842589,682.94,681.37,0.29352627]
[1738041022956,0.53538899,682.93,681.37,0.29352627]
[1738041023156,0.24253321,682.92,681.37,0.29352627]
[1738041023657,0.29286435,682.91,681.37,0.29352627]
[1738041023857,0.24253321,682.9,681.37,0.29352627]
[1738041024158,0.29287293,682.89,681.37,0.29352627]
[1738041025350,0.24252203,682.88,681.37,0.29352627]
[1738041025752,0.29288151,682.87,681.37,0.29352627]
[1738041025958,0.24252203,682.86,681.37,0.29352627]
[1738041026253,0.29288151,682.87,681.37,0.29352627]
[1738041026559,0.24252094,682.86,681.37,0.29352627]
[1738041026959,0.29289009,682.85,681.37,0.29352627]
[1738041027152,0.24252094,682.84,681.37,0.29352627]
[1738041027457,0.29289867,682.83,681.37,0.29352627]
[1738041027652,0.24252094,682.82,681.37,0.29352627]
[1738041027862,0.29289867,682.83,681.37,0.29352627]
[1738041029259,0.24252167,682.82,681.38,0.26942163]
[1738041029457,0.24252167,682.82,681.39,0.29351766]
[1738041029653,0.24252167,682.82,681.4,0.26942163]
[1738041029958,0.24252167,682.82,681.41,0.29350904]
[1738041030158,0.24252167,682.82,681.42,0.26942163]
[1738041030458,0.53542463,682.82,681.42,0.26942163]
[1738041030660,0.24252167,682.81,681.42,0.26942163]
[1738041031554,0.29290296,682.82,681.41,0.29350904]
[1738041031753,0.24252127,682.81,681.42,0.26942125]
[1738041033063,1.09842589,682.72,681.42,0.26942125]
[1738041033263,0.24252127,682.71,681.42,0.26942125]
[1738041035366,1.09842589,682.72,681.41,0.29350904]
[1738041035565,1.09842589,682.72,681.42,0.26941992]
[1738041035566,0.24251996,682.71,681.42,0.26941992]
[1738041036270,1.09842589,682.69,681.42,0.26941992]
[1738041036466,0.24251996,682.68,681.42,0.26941992]
[1738041038961,0.24252699,682.67,681.43,0.26942698]
[1738041039165,0.24252699,682.68,681.42,0.26942698]
[1738041039360,0.24252699,682.67,681.44,0.26942698]
[1738041039568,0.24252699,682.68,681.45,0.26942698]
[1738041039768,0.24252699,682.67,681.42,0.26942698]
[1738041039973,0.24252699,682.68,681.43,0.26942698]
[1738041040267,0.24252699,682.67,681.44,0.26942698]
[1738041040468,0.24252699,682.68,681.42,0.26942698]
[1738041040665,1.09842589,682.51,681.52,1.09104726]
[1738041040868,0.24252699,682.5,681.53,0.26942698]
[1738041041271,0.2425264,682.49,681.54,0.26942641]
[1738041041468,1.09842589,682.51,681.55,0.26942641]
[1738041041670,0.24252552,682.5,681.53,0.26942641]
[1738041041869,0.24252552,682.5,681.54,0.26942641]
[1738041042074,0.24252552,682.5,681.55,0.26942641]
[1738041042371,0.24252552,682.5,681.56,0.26942641]
[1738041042568,0.24252552,682.5,681.53,0.26942641]
[1738041042763,0.24252552,682.5,681.54,0.26942641]
[1738041042969,0.24252552,682.5,681.55,0.26942641]
[1738041043165,0.24252552,682.5,681.56,0.26942641]
[1738041043369,0.24252552,682.5,681.57,0.26942641]
[1738041043571,1.09842589,682.46,681.57,1.09104726]
[1738041043772,1.09842589,682.46,681.58,0.26942641]
[1738041044473,1.09842589,682.46,681.59,0.26942301]
[1738041044667,1.09842589,682.46,681.58,0.26942301]
[1738041046273,1.09842589,682.45,681.58,1.36047027]
[1738041046470,1.09842589,682.45,681.59,0.26942301]
[1738041048475,1.09842589,682.46,681.6,1.09104726]
[1738041048674,1.09842589,682.46,681.61,0.26942301]
[1738041049783,1.09842589,682.46,681.6,1.09104726]
[1738041049979,1.09842589,682.46,681.61,0.26941961]
[1738041050585,1.09842589,682.46,681.6,1.09104726]
[1738041051385,1.09842589,682.46,681.44,1.53051127]
[1738041051386,1.09842589,682.45,681.61,1.09104726]
[1738041054588,1.09842589,682.51,681.59,1.09104726]
[1738041055488,1.09842589,682.51,681.6,0.26940075]
[1738041057187,1.09842589,682.55,681.61,1.09104726]
[1738041060692,1.09842589,682.58,681.6,1.09104726]
[1738041062793,1.09842589,682.58,681.6,1.38447449]
[1738041062992,1.09842589,682.58,681.61,0.29342292]
[1738041064392,1.09842589,682.7,681.61,0.29342292]
[1738041067395,0.29290296,682.82,681.61,0.29342292]
[1738041070196,0.29290296,682.82,681.62,0.26934328]
[1738041070397,0.29290296,682.82,681.63,0.29341431]
[1738041095213,0.29290296,682.82,681.64,0.26935218]
[1738041095413,0.29290296,682.82,681.65,0.2934057]
[1738041096512,0.24245983,682.81,681.65,0.2934057]
[1738041096708,0.29290296,682.82,681.65,0.2934057]
[1738041097013,0.24247296,682.81,681.65,0.2934057]
[1738041097410,0.24247296,682.81,681.66,0.26938066]
[1738041097612,0.24247296,682.81,681.65,0.2934057]
[1738041098010,0.24247296,682.81,681.66,0.26937994]
[1738041098212,0.24247296,682.81,681.65,0.2934057]
[1738041098413,0.24247296,682.81,681.66,0.26938104]
[1738041098619,0.24248185,682.8,681.65,0.2934057]
[1738041098808,0.24248185,682.81,681.65,0.2934057]
[1738041099007,0.24248185,682.8,681.65,0.2934057]
[1738041099210,0.24248185,682.79,681.65,0.2934057]
[1738041099410,0.24248185,682.78,681.65,0.2934057]
[1738041099614,0.24248185,682.77,681.66,0.26938116]
[1738041099920,0.24248185,682.76,681.66,0.26938116]
[1738041100110,0.24248185,682.75,681.66,0.26938116]
[1738041100317,0.24248252,682.74,681.67,0.26938186]
[1738041100513,0.24248252,682.73,681.68,0.26938186]
[1738041100817,1.09842589,682.6,681.69,0.26938186]
[1738041101010,1.09842589,682.6,681.68,0.26938186]
[1738041101210,1.09842589,682.6,681.69,0.26938186]
[1738041101413,1.09842589,682.6,681.7,0.26937934]
[1738041101614,1.09842589,682.6,681.68,0.26937934]
[1738041102417,1.09842589,682.6,681.69,0.26937355]
[1738041102619,1.09842589,682.6,681.7,0.26937355]
[1738041102811,1.09842589,682.6,681.71,0.26937355]
[1738041103012,1.09842589,682.6,681.72,0.26937355]
[1738041103211,1.09842589,682.6,681.67,1.09104726]
[1738041103419,1.09842589,682.6,681.68,0.26937807]
[1738041103719,1.09842589,682.61,681.69,1.09104726]
[1738041103913,1.09842589,682.61,681.7,0.26937807]
[1738041104220,1.09842589,682.61,681.71,0.26937468]
[1738041104518,1.09842589,682.61,681.72,0.26937468]
[1738041104714,1.09842589,682.61,681.7,0.26937468]
[1738041104918,1.09842589,682.61,681.71,0.26937468]
[1738041105118,1.09842589,682.61,681.7,0.26937468]
[1738041105319,1.09842589,682.61,681.71,0.26937468]
[1738041105519,1.09842589,682.61,681.7,0.26937468]
[1738041105719,0.24248509,682.6,681.71,0.26937468]
[1738041105920,1.09842589,682.61,681.72,0.26938035]
[1738041106219,1.09842589,682.61,681.73,0.26937909]
[1738041106420,1.09842589,682.61,681.69,1.09104726]
[1738041106919,1.09842589,682.61,681.7,0.26938045]
[1738041107221,1.09842589,682.59,681.7,0.26938045]
[1738041107515,1.09842589,682.59,681.71,0.26938045]
[1738041107720,1.09842589,682.59,681.68,0.26938045]
[1738041107916,1.09842589,682.59,681.69,0.26937702]
[1738041108124,1.09842589,682.59,681.68,0.26937702]
[1738041108324,1.09842589,682.59,681.69,0.26937702]
[1738041108517,1.09842589,682.59,681.68,0.26937702]
[1738041108718,1.09842589,682.59,681.69,0.26937702]
[1738041108923,1.09842589,682.59,681.7,0.26937702]
[1738041109119,1.09842589,682.59,681.71,0.26937702]
[1738041109321,1.09842589,682.6,681.67,1.09104726]
[1738041109515,1.09842589,682.6,681.68,0.26938263]
[1738041111322,1.09842589,682.6,681.67,1.09104726]
[1738041112824,1.09842589,682.6,681.65,0.2934057]
[1738041115826,0.24254728,682.59,681.65,0.2934057]
[1738041116526,0.24254728,682.58,681.65,0.2934057]
[1738041116826,0.24254728,682.57,681.65,0.2934057]
[1738041117025,0.24254728,682.56,681.65,0.2934057]
[1738041117224,0.24254728,682.55,681.65,0.2934057]
[1738041117526,0.24254728,682.54,681.65,0.2934057]
[1738041117726,0.24254815,682.53,681.65,0.2934057]
[1738041117922,0.24254815,682.81,681.65,0.2934057]
[1738041118124,0.29291154,682.8,681.65,0.2934057]
[1738041118321,0.24254831,682.79,681.65,0.2934057]
[1738041118624,0.53546414,682.79,681.65,0.2934057]
[1738041118824,0.24254831,682.78,681.65,0.2934057]
[1738041119425,1.09842589,682.63,681.65,0.2934057]
[1738041119621,0.24254831,682.62,681.65,0.2934057]
[1738041121922,0.24255252,682.61,681.65,0.2934057]
[1738041122131,0.24255252,682.62,681.65,0.2934057]
[1738041122424,1.09842589,682.63,681.65,0.2934057]
[1738041122425,0.24255252,682.61,681.65,0.2934057]
[1738041122631,0.24255252,682.6,681.65,0.2934057]
[1738041122830,0.24255252,682.62,681.65,0.2934057]
[1738041123031,0.24255252,682.61,681.65,0.2934057]
[1738041123238,0.24255252,682.62,681.65,0.2934057]
[1738041123435,0.29291583,682.79,681.65,0.2934057]
[1738041123436,1.34097841,682.61,681.65,0.2934057]
[1738041123628,0.24255252,682.6,681.65,0.2934057]
[1738041125736,1.09842589,682.61,681.65,0.2934057]
[1738041125936,0.24254457,682.6,681.65,0.2934057]
[1738041126231,1.34097046,682.6,681.3,1.09104726]
[1738041126436,0.24254461,682.59,681.31,0.26944499]
[1738041128942,0.24254461,682.59,681.32,1.5306403]
[1738041129139,0.24254461,682.59,681.33,0.26944499]
[1738041129340,1.09842589,682.58,681.36,1.09104726]
[1738041129540,0.24254461,682.57,681.37,0.26944499]
[1738041132140,1.09842589,682.58,681.36,1.09104726]
[1738041132141,0.24254189,682.56,681.38,0.2694422]
[1738041132343,0.24254189,682.57,681.37,0.2694422]
[1738041132641,1.34096778,682.57,681.38,1.09104726]
[1738041132846,0.24254189,682.56,681.39,0.2694422]
[1738041133138,0.24254092,682.55,681.4,0.26944121]
[1738041133342,0.24254092,682.56,681.39,0.26944121]
[1738041133543,0.24254092,682.55,681.4,0.26944121]
[1738041133838,0.24254092,682.56,681.39,0.26944121]
[1738041134144,0.24254092,682.55,681.4,0.26944121]
[1738041134347,0.24254092,682.56,681.39,0.26944121]
[1738041134643,0.24254092,682.55,681.4,0.26944121]
[1738041134838,0.24254092,682.54,681.41,0.26944121]
[1738041135043,0.24254092,682.56,681.39,0.26944121]
[1738041135242,0.24254092,682.55,681.4,0.26944121]
[1738041136945,0.2425523,682.54,681.41,0.26945277]
[1738041137145,0.2425523,682.55,681.4,0.26945277]
[1738041137447,0.2425523,682.54,681.41,0.26945277]
[1738041137645,0.2425523,682.55,681.4,0.26945277]
[1738041138047,1.09842589,682.53,681.4,0.26945277]
[1738041138346,0.2425523,682.52,681.41,0.26945277]
[1738041138546,0.2425523,682.52,681.38,0.26945277]
[1738041138739,0.2425523,682.52,681.39,0.26945277]
[1738041138939,0.2425523,682.52,681.4,0.26945277]
[1738041139138,0.2425523,682.52,681.37,1.09104726]
[1738041139139,0.2425523,682.52,681.38,0.26945277]
[1738041139344,0.2425523,682.52,681.39,0.26945277]
[1738041139542,0.24255227,682.51,681.4,0.26945277]
[1738041139744,0.24255227,682.5,681.41,0.26945277]
[1738041139944,0.24255227,682.52,681.38,0.26945277]
[1738041140143,0.24255227,682.51,681.39,0.26945277]
[1738041140440,0.24255227,682.5,681.4,0.26945277]
[1738041140641,0.24255227,682.52,681.38,0.26945277]
[1738041140844,0.24255227,682.51,681.39,0.26945277]
[1738041141042,1.34097816,682.5,681.4,0.26945277]
[1738041141239,0.24255227,682.49,681.41,0.26945277]
[1738041141447,0.24255227,682.49,681.42,0.26945277]
[1738041141741,1.09842589,682.5,681.38,1.09104726]
[1738041141945,1.09842589,682.5,681.39,0.26945107]
[1738041142146,1.09842589,682.5,681.38,1.09104726]
[1738041142840,0.24257971,682.49,681.38,1.09104726]
[1738041143646,1.09842589,682.5,681.38,1.09104726]
[1738041145045,5.25320693,690.37,681.35,1.53070762]
[1738041145046,1.09842589,682.49,681.35,1.53070762]
[1738041148149,0.74203543,683.15,681.35,1.53070762]
[1738041148150,1.09842589,682.53,681.35,1.53070762]
[1738041148351,0.2426303,682.52,681.35,1.53070762]
[1738041149445,1.09842589,682.53,681.35,1.53070762]
[1738041149645,0.24262346,682.52,681.35,1.53070762]
[1738041149853,1.09842589,682.53,681.35,1.53070762]
[1738041150052,0.24262323,682.52,681.35,1.53070762]
[1738041150252,1.09842589,682.53,681.35,1.53070762]
[1738041150954,0.24262263,682.52,681.35,1.53070762]
[1738041151152,1.09842589,682.53,681.35,1.53070762]
[1738041151353,0.24262215,682.52,681.35,1.53070762]
[1738041151751,1.09842589,682.53,681.35,1.53070762]
[1738041152753,0.24262156,682.52,681.35,1.53070762]
[1738041152951,1.09842589,682.53,681.35,1.53070762]
[1738041153654,0.24262037,682.52,681.35,1.53070762]
[1738041154951,0.24262037,682.55,681.35,1.53070762]
[1738041155152,0.24262037,682.54,681.35,1.53070762]
[1738041155348,0.24262037,682.55,681.35,1.53070762]
[1738041157057,1.09842589,682.4,681.35,1.53070762]
[1738041157257,0.24262037,682.39,681.35,1.53070762]
[1738041160362,1.09842589,682.37,681.35,1.53070762]
[1738041160563,0.24262037,682.36,681.35,1.53070762]
[1738041160763,1.09842589,682.37,681.35,1.53070762]
[1738041160957,0.24262435,682.36,681.35,1.53070762]
[1738041161560,0.24262517,682.35,681.35,1.53070762]
[1738041161765,0.24262517,682.36,681.35,1.53070762]
[1738041161961,0.24262517,682.35,681.35,1.53070762]
[1738041162164,0.24262517,682.36,681.35,1.53070762]
[1738041163866,0.24262517,682.35,681.35,1.53070762]
[1738041164161,0.24262517,682.34,681.35,1.53070762]
[1738041164359,0.24262517,682.38,681.35,1.53070762]
[1738041164762,0.24262446,682.37,681.35,1.53070762]
[1738041164962,0.24262446,682.36,681.35,1.53070762]
[1738041165167,0.24262446,682.35,681.35,1.53070762]
[1738041165358,0.24262446,682.34,681.35,1.53070762]
[1738041165562,0.24262446,682.38,681.35,1.53070762]
[1738041165764,0.24262446,682.37,681.35,1.53070762]
[1738041165960,0.24262446,682.38,681.35,1.53070762]
[1738041166165,0.24262446,682.37,681.35,1.53070762]
[1738041166362,0.24262446,682.38,681.35,1.53070762]
[1738041166867,1.09842589,682.36,681.35,1.53070762]
[1738041167067,0.24262446,682.35,681.35,1.53070762]
[1738041168469,0.24262849,682.34,681.35,1.53070762]
[1738041168766,0.24262849,682.33,681.35,1.53070762]
[1738041168967,0.24262849,682.35,681.35,1.53070762]
[1738041169166,0.24262849,682.34,681.35,1.53070762]
[1738041169367,0.24262849,682.33,681.35,1.53070762]
[1738041169565,0.24262849,682.32,681.35,1.53070762]
[1738041169765,1.09842589,682.36,681.35,1.53070762]
[1738041169963,1.09842589,682.32,681.35,1.53070762]
[1738041170666,1.09842589,682.32,681.17,1.09104726]
[1738041170869,0.24264594,682.31,681.17,1.09104726]
[1738041171067,0.24264594,682.31,681.19,1.531151]
[1738041173067,0.24264594,682.37,681.19,1.531151]
[1738041173271,0.24264594,682.36,681.19,1.531151]
[1738041173468,0.24264594,682.37,681.19,1.531151]
[1738041173669,0.24264594,682.36,681.19,1.531151]
[1738041173870,0.24264594,682.37,681.19,1.531151]
[1738041174063,0.24264594,682.36,681.19,1.531151]
[1738041174265,0.24264594,682.37,681.19,1.531151]
[1738041174463,0.24264594,682.36,681.19,1.531151]
[1738041174672,0.24264594,682.37,681.19,1.531151]
[1738041175972,1.09842589,682.29,681.19,1.531151]
[1738041176174,0.24264594,682.28,681.19,1.531151]
[1738041178576,1.09842589,682.27,681.19,1.531151]
[1738041178874,0.24264594,682.26,681.19,1.531151]
[1738041180976,0.24264594,682.26,681.2,0.26957514]
[1738041181678,1.09842589,682.24,681.2,0.26957514]
[1738041181879,0.24264594,682.23,681.2,0.26957514]
[1738041182379,1.09842589,682.24,681.19,1.531151]
[1738041182583,1.09842589,682.24,681.2,0.26957559]
[1738041182584,0.24267322,682.23,681.2,0.26957559]
[1738041184880,1.09842589,682.13,681.2,0.26957559]
[1738041185080,0.24267322,682.12,681.2,0.26957559]
[1738041185978,1.09842589,682.13,681.2,0.26957559]
[1738041186281,1.09842589,682.13,681.21,0.26955612]
[1738041186584,1.09842589,682.13,681.22,0.26955612]
[1738041186783,1.09842589,682.13,681.23,0.26955612]
[1738041186983,1.09842589,682.13,681.2,0.26955612]
[1738041187180,1.09842589,682.13,681.21,0.26955612]
[1738041187382,1.09842589,682.13,681.2,0.26955612]
[1738041187584,1.09842589,682.13,681.21,0.26955612]
[1738041187784,1.09842589,682.13,681.2,0.26955612]
[1738041187980,1.09842589,682.13,681.19,1.531151]
[1738041188182,1.09842589,682.13,681.2,0.26956278]
[1738041188487,1.09842589,682.18,681.2,0.26956278]
[1738041188680,0.24265842,682.17,681.2,0.26956278]
[1738041191988,1.34108431,682.17,681.2,0.26956278]
[1738041192190,0.24265842,682.16,681.2,0.26956278]
[1738041194999,1.09842589,682.17,681.19,1.531151]
[1738041197597,1.09842589,682.38,681.19,1.531151]
[1738041200690,1.09842589,682.37,681.19,1.531151]
[1738041202196,1.09842589,682.37,680.82,1.09104726]
[1738041202391,1.09842589,682.37,680.83,0.29375908]
[1738041203597,1.09842589,682.37,680.84,1.53147669]
[1738041203895,1.09842589,682.37,680.85,0.29375045]
[1738041204803,0.24269625,682.36,680.85,0.29375045]
[1738041204992,1.09842589,682.35,680.85,0.29375045]
[1738041205197,0.24269625,682.34,680.86,0.26960493]
[1738041205394,0.24269625,682.34,680.87,0.29374183]
[1738041205598,0.24270655,682.33,680.88,0.26960945]
[1738041205799,0.24270655,682.32,680.89,0.2937332]
[1738041206101,0.24270655,682.31,680.9,0.26960945]
[1738041206401,0.24270655,682.3,680.91,0.29372457]
[1738041206604,0.24270655,682.34,680.92,0.26960945]
[1738041206803,0.24270655,682.33,680.93,0.29371594]
[1738041207002,0.24270655,682.34,680.93,0.29371594]
[1738041207202,0.24270655,682.33,680.93,0.29371594]
[1738041207397,0.24270655,682.32,680.93,0.29371594]
[1738041207596,0.24270655,682.31,680.93,0.29371594]
[1738041207799,0.24270655,682.3,680.93,0.29371594]
[1738041207999,0.24270655,682.34,680.93,0.29371594]
[1738041208201,0.24270655,682.33,680.93,0.29371594]
[1738041208402,0.24270655,682.34,680.93,0.29371594]
[1738041208602,0.24270655,682.33,680.93,0.29371594]
[1738041208800,0.24270655,682.34,680.93,0.29371594]
[1738041209004,1.09842589,682.35,680.93,0.29371594]
[1738041209005,0.24270655,682.33,680.93,0.29371594]
[1738041209205,1.09842589,682.2,680.93,0.29371594]
[1738041209608,1.09842589,682.2,680.94,0.26961147]
[1738041209802,1.09842589,682.2,680.95,0.29370732]
[1738041210199,0.24270978,682.19,680.95,0.29370732]
[1738041212110,1.09842589,682.12,680.95,0.29370732]
[1738041212806,0.24273085,682.11,680.95,0.29370732]
[1738041214013,0.24272801,682.1,680.95,0.29370732]
[1738041214307,1.09842589,682.12,680.95,0.29370732]
[1738041214507,0.24272818,682.11,680.95,0.29370732]
[1738041214708,0.24272818,682.11,680.96,0.26963151]
[1738041214912,1.09842589,682.12,680.95,0.29370732]
[1738041215208,1.09842589,682.1,680.95,0.29370732]
[1738041218216,1.09842589,682.16,680.95,0.29370732]
[1738041221409,1.09842589,682.42,680.95,0.29370732]
[1738041221609,0.29308323,682.4,680.95,0.29370732]
[1738041222810,1.53188118,682.39,680.95,0.29370732]
[1738041223009,0.29309182,682.38,680.95,0.29370732]
[1738041226602,0.24275563,682.37,680.95,0.29370732]
[1738041226803,0.29310041,682.36,680.95,0.29370732]
[1738041227007,0.24275309,682.35,680.95,0.29370732]
[1738041227208,0.293109,682.34,680.95,0.29370732]
[1738041227512,0.24275309,682.33,680.95,0.29370732]
[1738041227707,0.29311759,682.32,680.95,0.29370732]
[1738041227907,0.24275309,682.31,680.95,0.29370732]
[1738041228106,0.29312619,682.3,680.95,0.29370732]
[1738041228316,0.24275309,682.29,680.95,0.29370732]
[1738041228506,0.29313478,682.28,680.95,0.29370732]
[1738041228708,0.24275309,682.27,680.95,0.29370732]
[1738041228913,0.29314337,682.26,680.95,0.29370732]
[1738041230411,0.24275686,682.25,680.95,0.29370732]
[1738041230619,0.29315196,682.24,680.95,0.29370732]
[1738041232214,0.24275364,682.23,680.95,0.29370732]
[1738041232416,0.29316056,682.22,680.95,0.29370732]
[1738041233118,0.24275498,682.21,680.95,0.29370732]
[1738041235115,1.09842589,682.12,680.95,0.29370732]
[1738041235316,0.24275498,682.11,680.95,0.29370732]
[1738041236320,0.24275833,682.1,680.95,0.29370732]
[1738041236619,0.24275833,682.09,680.95,0.29370732]
[1738041236819,0.24275833,682.11,680.95,0.29370732]
[1738041237916,1.09842589,682.12,680.95,0.29370732]
[1738041238119,0.24276096,682.11,680.95,0.29370732]
[1738041238319,1.09842589,682.09,680.95,0.29370732]
[1738041238619,0.24276096,682.08,680.95,0.29370732]
[1738041240222,0.24276096,682.08,680.96,0.26964029]
[1738041240821,1.09842589,682.06,680.96,0.26964029]
[1738041241122,0.24276096,682.05,680.96,0.26964029]
[1738041243025,1.09842589,682.06,680.95,0.29370732]
[1738041243225,0.24273049,682.05,680.96,0.2696338]
[1738041244328,1.09842589,682.03,680.96,0.2696338]
[1738041244527,0.24273049,682.02,680.96,0.2696338]
[1738041246127,1.09842589,682.03,680.95,0.29370732]
[1738041247531,0.29316056,682.22,680.98,1.09104726]
[1738041247532,1.09842589,681.97,680.98,1.09104726]
[1738041250237,1.09842589,682.06,680.95,0.29370732]
[1738041252336,1.09842589,682.04,680.95,0.29370732]
[1738041256036,0.24274496,682.03,680.96,0.26964851]
[1738041258035,1.09842589,681.88,681.0,1.09104726]
[1738041258239,1.09842589,681.88,681.01,0.26964067]